Cogmind - Beta 13 X1 @@@ ROGUE MODE // 2023.12.01 @ 11:14:05 Player: AlmondRoll Result: Self-destructed Performance ------------- Evolutions (5) 2500 Regions Visited (20) 4000 Robots Destroyed (163) 815 Value Destroyed (5454) 5454 Prototype IDs (38) 760 Alien Tech Used (1) 200 Bonus (4959) 4959 TOTAL SCORE: 18688 Bonus ------- High Alert Combat Kills 509 Follower Combat Kills 3703 Met Data Miner 300 Met Imprinter 300 Was Imprinted 300 A7 Reached Mainframe 300 Friendly Fire -453 Cogmind --------- Core Integrity 659/1000 Matter 280/300 Energy 55/100 System Corruption 1% Temperature Cool (0) Movement Walking (200) Ox1 Location -5/Hub_04(d) Parts ------- > --- POWER (2) -------- (None) > --- PROPULSION (4) --- Zionite Composite Leg I Myomer Leg > --- UTILITY (8) ------ Experimental Heat Sink Experimental Heat Sink Advanced Cooling System High-capacity Storage Unit Advanced Terrain Scan Processor Layered Heavy Armor Plating > --- WEAPON (4) ------- Plasma Rifle Wave Gun Great Maul > --- INVENTORY (20) --- Zionite Composite Leg I Zionite Biocell (600) High-capacity Matter Pod (200) Advanced Signal Interpreter Long-range Terrain Scanner Improved Transmission Jammer Zionite Weapon Casing Zionite Weapon Casing Heavy Armor Plating Experimental Thermal Shield Advanced Shield Generator Cooled Plasma Rifle Cooled Plasma Rifle Cooled Plasma Rifle Cooled Plasma Rifle Cooled Plasma Rifle Neutron Cannon Peak State ------------ > --- POWER ------------ Zionite Heavy DM Reactor Quantum Reactor > --- PROPULSION ------- Improved Titanium Leg Arachnoskeleton Myomer Leg > --- UTILITY ---------- Experimental Heat Sink Advanced Cooling System High-capacity Storage Unit Improved Signal Interpreter Advanced Terrain Scan Processor Zionite Weapon Casing Layered Heavy Armor Plating > --- WEAPON ----------- Plasma Rifle Zionite Laser-S Wave Gun Wave Gun > --- INVENTORY -------- Nuclear Core Zionite Composite Leg I Zionite Composite Leg I Zionite Composite Leg I Zionite Composite Leg I Advanced Cooling System Zionite Biocell High-capacity Matter Pod Advanced Sensor Array Long-range Terrain Scanner Improved Particle Charger Improved Transmission Jammer Zionite Weapon Casing Zionite Weapon Casing Experimental Thermal Shield Advanced Shield Generator Gatling Laser Gatling Laser Neutron Cannon Great Maul [Rating: 121] Favorites ----------- Power Angular Momentum Engine Engine Angular Momentum Engine Power Core Light Nuclear Core Reactor Zionite Heavy DM Reactor Propulsion Enhanced Flexi-carbon Leg Treads Light Treads Leg Enhanced Flexi-carbon Leg Wheel Armored Wheel Utility Improved Signal Interpreter Device Advanced Sensor Array Storage High-capacity Storage Unit Processor Improved Signal Interpreter Protection Hardened Heavy Armor Plating Weapon Autogun Energy Gun Subdweller Laser Energy Cannon Subdweller Beam Cannon Ballistic Gun Autogun Launcher Subdweller Shrapnel Launcher Special Weapon Enhanced Flamer Impact Weapon Mace Slashing Weapon Makeshift Axe Piercing Weapon Heavy Pick Special Melee Weapon Improved Datajack Build | -11 -10 -10 -8 -7 -7 -7 -7 -6 -6 -6 -6 -6 -5 -5 -5 -5 -5 -5 -5 -5 ------- Run | Jun Mat Sub Mat Fac Low Low Dat Pro Fac Low Low Zio Pro Fac Was Fac Ext Cet Arc Hub Slots Evolved 10 | . . . 4 2 . . . . 2 . . . . 2 . . . . . . Power 1 | . . . . . . . . . . . . . . 1 . . . . . . Propulsion 2 | . . . 1 . . . . . . . . . . 1 . . . . . . Utility 6 | . . . 2 2 . . . . 2 . . . . . . . . . . . Weapon 1 | . . . 1 . . . . . . . . . . . . . . . . . Parts Attached 439 | 4 4 10 48 16 14 14 1 17 49 43 24 2 22 51 8 21 49 9 13 20 Power 27 | . 1 . 3 . . 1 . 1 2 1 2 . . 2 1 1 6 3 2 1 Engine 10 | . 1 . . . . . . 1 1 1 2 . . 1 . 1 2 . . . Core 10 | . . . 3 . . 1 . . 1 . . . . . . . 1 2 2 . Reactor 7 | . . . . . . . . . . . . . . 1 1 . 3 1 . 1 Propulsion 24 | 3 . 1 4 1 . . . 2 6 . . . . 2 . 1 1 . 3 . Treads 6 | 2 . 1 1 . . . . . 2 . . . . . . . . . . . Leg 13 | . . . . . . . . 2 4 . . . . 2 . 1 1 . 3 . Wheel 5 | 1 . . 3 1 . . . . . . . . . . . . . . . . Hover . | . . . . . . . . . . . . . . . . . . . . . Flight . | . . . . . . . . . . . . . . . . . . . . . Utility 247 | . 3 4 24 10 8 6 1 10 28 34 18 . 12 24 6 13 24 1 8 13 Device 169 | . 1 . 14 6 6 5 . 7 16 26 14 . 10 18 5 9 15 1 7 9 Storage 6 | . 1 1 . 1 . . . . 1 . . . . . . . 2 . . . Processor 5 | . . . 1 . . . . . 1 . . . . 2 . 1 . . . . Hackware . | . . . . . . . . . . . . . . . . . . . . . Protection 67 | . 1 3 9 3 2 1 1 3 10 8 4 . 2 4 1 3 7 . 1 4 Artifact . | . . . . . . . . . . . . . . . . . . . . . Weapon 141 | 1 . 5 17 5 6 7 . 4 13 8 4 2 10 23 1 6 18 5 . 6 Energy Gun 45 | . . . . . . . . 1 6 4 2 2 2 6 1 1 13 4 . 3 Energy Cannon 16 | . . . . . 2 1 . 1 . . 1 . 3 2 . 2 2 1 . 1 Ballistic Gun 25 | 1 . 3 10 2 1 3 . 1 3 . . . . 1 . . . . . . Ballistic Cannon . | . . . . . . . . . . . . . . . . . . . . . Launcher 5 | . . . 2 1 1 1 . . . . . . . . . . . . . . Special Weapon 8 | . . . . . . . . . . . . . . 4 . 2 2 . . . Impact Weapon 7 | . . 1 . . . . . . . . . . . 4 . . . . . 2 Slashing Weapon 19 | . . 1 5 2 2 2 . 1 4 1 . . . 1 . . . . . . Piercing Weapon 15 | . . . . . . . . . . 3 1 . 4 5 . 1 1 . . . Special Melee Weapon 1 | . . . . . . . . . . . . . 1 . . . . . . . Unidentified Prototypes 19 | . . . 1 . . . . 2 . . . . 2 6 . 1 6 . . 1 Corrupted Parts 1 | . . . . . . . . . . . . . . . . . . 1 . . System Corruption 4 | . . . . . . . . . . . . . . . . . . 4 . . Parts Lost 19 | . . 1 2 . . 2 . 4 1 2 1 . . . . . 2 . . 4 Power 5 | . . . . . . 1 . . . . . . . . . . 2 . . 2 Propulsion 4 | . . . 2 . . . . 1 . . 1 . . . . . . . . . Utility 7 | . . . . . . 1 . 1 1 2 . . . . . . . . . 2 Weapon 3 | . . 1 . . . . . 2 . . . . . . . . . . . . Highest Loss Streak 4 | . . 1 1 . . 2 . 4 1 2 1 . . . . . 1 . . 4 To Critical Strikes . | . . . . . . . . . . . . . . . . . . . . . Average Slot Usage (%) 84 | . 98 94 97 89 83 83 76 79 85 82 82 82 80 78 75 78 80 82 85 92 Engine 4 | . 14 14 2 . . . . 1 3 5 5 5 5 5 5 8 6 . . . Core 1 | . . . 6 7 7 7 . . 1 . . . . . . . 1 6 10 10 Treads 3 | . 28 28 19 . . . . . 2 . . . . . . . . . . . Leg 12 | . . . . . . . . 10 16 22 18 17 16 15 15 15 15 15 16 21 Wheel 2 | . . . 6 16 15 15 15 9 1 . . . . . . . . . . . Device 15 | . . . 9 15 8 8 7 14 21 19 24 23 19 13 10 11 10 12 15 17 Storage 6 | . 14 9 9 7 7 7 7 7 5 5 5 5 5 5 5 5 5 5 5 5 Processor 6 | . . . 3 7 7 7 7 7 7 8 5 5 5 7 7 8 10 10 10 5 Protection 7 | . 11 13 12 10 13 13 15 7 4 3 3 5 8 8 5 6 9 7 5 8 Energy Gun 7 | . . . . . . . . 3 7 11 8 11 11 7 9 8 12 19 21 21 Ballistic Gun 6 | . 28 22 24 19 17 13 15 10 4 . . . . . . . . . . . Slashing Weapon 1 | . . 3 2 2 . 3 7 1 4 . . . . . . . . . . . Piercing Weapon 1 | . . . . . . . . . . 3 4 5 3 3 . 2 2 . . . Naked Turns . | . . . . . . . . . . . . . . . . . . . . . Heaviest Build 130 | 10 34 38 53 85 83 90 72 83 96 85 97 98 111 106 130 130 99 121 98 105 Greatest Support 106 | 40 40 40 60 44 40 40 40 28 106 106 106 98 98 98 94 94 95 95 97 97 Greatest Overweight (x) 7 | . . . 2 2 2 2 2 6 7 . . . 1 1 1 1 1 1 1 1 Average Overweight (x) . | . . . 1 1 1 1 1 3 1 . . . . . . . . . . . Largest Inventory Capacity 20 | 8 15 15 15 20 20 20 20 20 20 20 20 20 20 20 20 20 20 20 20 20 Average Capacity 18 | 8 10 11 15 18 20 20 20 20 20 20 20 20 20 20 20 20 20 20 20 20 Most Carried 20 | 6 13 15 15 20 20 20 18 20 20 20 20 20 20 20 20 20 20 20 20 20 Average Carried 18 | 5 8 10 14 17 19 20 18 18 18 19 19 19 19 19 19 19 19 19 19 19 Final Capacity 20 | 8 15 15 15 20 20 20 20 20 20 20 20 20 20 20 20 20 20 20 20 20 Final Carried 20 | 6 13 15 15 20 20 20 18 20 18 20 19 20 20 20 20 20 20 20 20 18 Class Distribution -------------------- 22% | Derelict-Assassin 17% | Scavenger-Assassin 16% | Mutant 9% | Scavenger-Tank 6% | Scavenger-Mutant 5% | Scavenger-Skirmisher 4% | Scavenger-Gunner 3% | Skirmisher 3% | Derelict-Mutant Dominant Class ---------------- Mutant | -10/Materials Mutant | -10/Subcaves Tank | -8/Materials Skirmisher | -7/Factory Mutant | -7/Lower Caves Scavenger-Skirmisher | -7/Lower Caves Mutant | -7/Data Miner Scavenger-Tank | -6/Proximity Caves Scavenger-Assassin | -6/Factory Scavenger-Assassin | -6/Lower Caves Derelict-Assassin | -6/Lower Caves Derelict-Assassin | -6/Zion Derelict-Assassin | -5/Proximity Caves Derelict-Assassin | -5/Factory Scavenger-Skirmisher | -5/Waste Scavenger-Mutant | -5/Factory Scavenger-Tank | -5/Extension Scavenger-Tank | -5/Cetus Scavenger-Gunner | -5/Archives Scavenger-Mutant | -5/Hub_04(d) Resources | -11 -10 -10 -8 -7 -7 -7 -7 -6 -6 -6 -6 -6 -5 -5 -5 -5 -5 -5 -5 -5 ----------- Run | Jun Mat Sub Mat Fac Low Low Dat Pro Fac Low Low Zio Pro Fac Was Fac Ext Cet Arc Hub Matter Collected 9008 | 246 58 471 1447 423 318 443 . 825 849 1090 671 60 230 490 129 219 595 72 186 186 Remotely 596 | . . . . . . . . . . 264 332 . . . . . . . . . Salvage Created 10194 | 100 98 343 1376 228 189 353 . 315 762 573 558 . 141 628 1305 260 1803 . 411 751 Parts 328 | . 6 25 65 11 3 16 . 9 24 11 15 . 6 21 2 10 46 . 29 29 Haulers Intercepted 6 | . . . . . . . . . . . . . 1 1 . . 1 . . 3 Recyclers Shooed 8 | . 2 . 1 . . . . . 1 . . . . 1 . . 3 . . . Parts Field Recycled . | . . . . . . . . . . . . . . . . . . . . . Retrieved Matter . | . . . . . . . . . . . . . . . . . . . . . Parts Self-Destructed 83 | . . 20 . . 4 14 . 19 . 11 . 4 11 . . . . . . . Prevented 7 | . . . . . 6 1 . . . . . . . . . . . . . . Kills | -11 -10 -10 -8 -7 -7 -7 -7 -6 -6 -6 -6 -6 -5 -5 -5 -5 -5 -5 -5 -5 ------- Run | Jun Mat Sub Mat Fac Low Low Dat Pro Fac Low Low Zio Pro Fac Was Fac Ext Cet Arc Hub Combat Hostiles Destroyed 103 | . 2 12 17 3 3 9 . 4 8 4 6 . . 5 6 5 14 . . 5 Melee 14 | . . . . . . . . . 1 2 6 . . 1 . 3 1 . . . Guns 62 | . 2 12 14 3 1 1 . 4 6 2 . . . . . 2 10 . . 5 Cannons 7 | . . . . . 2 3 . . . . . . . 1 1 . . . . . AOE 8 | . . . 3 . . 5 . . . . . . . . . . . . . . Classes Destroyed 21 | 1 1 3 4 1 1 1 . 2 1 . 1 . 1 1 1 . . . 1 1 Worker 7 | . . . 2 . . . . . 1 . . . . 1 . . 2 . . 1 Builder 6 | . . . . . . . . . 1 . . . . 2 . . 2 . . 1 Hauler 6 | . . . . . . . . . . . . . 1 1 . . 1 . . 3 Recycler 22 | 1 . . 6 1 . . . . 3 . . . . 2 . 1 7 . . 1 Minesweeper 3 | . . . . . . . . 1 . 1 . . 1 . . . . . . . Mechanic 1 | . . . 1 . . . . . . . . . . . . . . . . . Operator 10 | . . . 1 . . . . . . . . . . . . . . . 9 . Watcher 3 | . . . 3 . . . . . . . . . . . . . . . . . Swarmer 28 | . . 7 3 . . 6 . 3 4 . . . . . . 4 . . . 1 Cutter 1 | . . . . . . . . . . . . . . . . . . . . 1 Grunt 37 | . 2 3 13 . 1 2 . . . 3 . . . 2 . 1 8 . . 2 Brawler 2 | . . . . . . . . 1 . . . . . . . . . . . 1 Duelist 2 | . . . . . . 1 . . . . . . . 1 . . . . . . Sentry 7 | . . 1 1 1 . . . . 2 . . . . . . . 2 . . . Hunter 5 | . . . . . 2 . . . . 1 . . . . . . 2 . . . Programmer 5 | . . . . 2 . . . . 2 . . . . 1 . . . . . . Heavy 1 | . . . . . . . . . . . . . . 1 . . . . . . Compactor 6 | . . . . . . . . . . . . . . . 6 . . . . . Subdweller 1 | . . 1 . . . . . . . . . . . . . . . . . . Z-Light 1 | . . . . . . . . . . . . . . . . . . . 1 . Packrat 2 | . . . . . . . . . . . 2 . . . . . . . . . Thug 7 | . . . . . . . . . . . 5 . . . . . 1 . 1 . Savage 1 | . . . . . . . . . . . . . . . . . 1 . . . Mutant 1 | . . . . . . . . . . . 1 . . . . . . . . . Best Kill Streak 8 | 1 2 4 4 1 1 3 . 3 4 1 3 . 1 3 3 5 8 . 5 4 Combat Bots Only 5 | . 2 4 3 1 1 3 . 3 4 1 3 . . 2 3 4 5 . . 3 Max Kills in Single Turn 2 | 1 1 2 2 1 1 2 . 1 1 1 1 . 1 1 1 1 2 . 2 2 Gunslinging 1 | . . 1 . . . . . . . . . . . . . . 1 . . . Exploded 2 | . . . 2 . . 2 . . . . . . . . . . . . . . Melee 1 | . . . . . . . . . 1 1 1 . . 1 . 1 1 . . . Uniques/NPCs Destroyed . | . . . . . . . . . . . . . . . . . . . . . Combat | -11 -10 -10 -8 -7 -7 -7 -7 -6 -6 -6 -6 -6 -5 -5 -5 -5 -5 -5 -5 -5 -------- Run | Jun Mat Sub Mat Fac Low Low Dat Pro Fac Low Low Zio Pro Fac Was Fac Ext Cet Arc Hub Damage Taken 9458 | . 107 696 639 726 138 438 . 430 1005 883 422 . 64 503 53 564 1394 . 44 1352 Core 945 | . . 118 77 75 . 29 . 22 109 131 43 . . 27 . 81 155 . . 78 Absorbed by Shields 329 | . . . . . . 19 . . 119 32 132 . . . . . 27 . . . Redirected to Shielding 527 | . . . . . 9 40 . 11 . . . . . 15 . 62 203 . . 187 Ignored by Resistances 308 | . . . 66 26 . . . . 21 12 140 . . 43 . . . . . . Regen/Repaired (Parts) 3 | . . . . . . . . . . . . 3 . . . . . . . . Core Remaining (%) 77 | 100 . 52 86 . . . . 82 . . . . 66 . . . . . . . Volleys Fired 423 | 3 16 35 62 20 14 22 . 30 25 10 20 . 28 16 16 13 54 1 15 23 Largest 4 | 2 2 2 3 3 3 3 . 3 3 3 3 . 1 4 4 4 4 1 4 4 Hottest 320 | 40 40 46 69 69 80 80 . 80 198 180 180 . 85 320 320 320 320 90 297 297 Shots Fired 992 | 6 32 70 173 60 24 27 . 61 58 29 24 . 28 35 61 21 152 1 60 70 Gun 853 | 6 32 70 170 60 15 9 . 61 58 29 6 . 6 15 33 10 144 . 60 69 Cannon 82 | . . . . . 9 14 . . . . 18 . 22 8 . 7 2 1 . 1 Launcher 7 | . . . 3 . . 4 . . . . . . . . . . . . . . Special 50 | . . . . . . . . . . . . . . 12 28 4 6 . . . Kinetic 441 | 6 32 70 173 60 15 13 . 57 15 . . . . . . . . . . . Thermal 551 | . . . . . 9 14 . 4 43 29 24 . 28 35 61 21 152 1 60 70 Explosive . | . . . . . . . . . . . . . . . . . . . . . Electromagnetic . | . . . . . . . . . . . . . . . . . . . . . Robot Hit Streak 21 | 6 9 13 15 13 7 8 . 5 10 6 6 . . 12 18 21 21 . 5 13 Robot Miss Streak 5 | . 2 4 4 3 1 3 . 4 3 4 1 . . 4 2 3 5 . 2 3 Penetration Max . | . . . . . . . . . . . . . . . . . . . . . Secondary Targets 14 | . . 3 1 . . . . . 2 . . . . . . . 4 . . 4 Max Gunslinging Chain 1 | . . 1 1 . . . . . 1 . . . . . . . 1 . . 1 Shots Hit Robots 707 | 6 26 44 128 39 16 16 . 33 49 29 25 . 2 35 60 14 106 . 33 46 Core Hits 336 | 2 10 21 52 8 5 14 . 15 17 12 12 . 2 14 17 10 83 . 21 21 Critical Kills 1 | . . . 1 . . . . . . . . . . . . . . . . . Critical Parts Destroyed 1 | . . . . 1 . . . . . . . . . . . . . . . . Critical Strikes 27 | . . . 1 1 1 . . . 4 4 1 . . 5 3 . 3 . . 4 Burn 17 | . . . . . . . . . 3 1 . . . 3 3 . 3 . . 4 Destroy 2 | . . . 1 1 . . . . . . . . . . . . . . . . Sever 2 | . . . . . 1 . . . 1 . . . . . . . . . . . Impale 6 | . . . . . . . . . . 3 1 . . 2 . . . . . . Melee Attacks 196 | . . 8 9 4 6 2 . 5 32 38 34 9 10 29 . 8 1 . . 1 Impact 10 | . . 5 . . . . . . . . . . . 4 . . . . . 1 Slashing 80 | . . 3 9 4 6 2 . 5 32 19 . . . . . . . . . . Piercing 106 | . . . . . . . . . . 19 34 9 10 25 . 8 1 . . . Sneak Attacks 29 | . . . 6 . . . . . 9 3 2 . 2 5 . 1 1 . . . Combat Hostiles 2 | . . . . . . . . . . 2 . . . . . . . . . . Follow-up Attacks . | . . . . . . . . . . . . . . . . . . . . . Damage Inflicted 17503 | 53 202 512 2669 652 303 804 . 648 1445 950 803 . 115 1069 1337 354 2908 . 1121 1558 Guns 12089 | 53 202 512 1827 652 134 44 . 503 690 351 101 . . 379 1035 190 2790 . 1111 1515 Cannons 339 | . . . . . 60 279 . . . . . . . . . . . . . . Explosions 615 | . . . 302 . . 313 . . . . . . . . . . . . . . Melee 3837 | . . . 540 . 109 168 . 145 755 599 702 . 115 488 . 164 52 . . . Ramming 112 | . . . . . . . . . . . . . . 59 . . . . 10 43 Kinetic 4752 | 53 202 512 2129 652 134 357 . 503 210 . . . . . . . . . . . Thermal 8802 | . . . . . 60 279 . . 480 351 101 . . 522 1337 190 2856 . 1111 1515 Explosive . | . . . . . . . . . . . . . . . . . . . . . Electromagnetic . | . . . . . . . . . . . . . . . . . . . . . Impact . | . . . . . . . . . . . . . . . . . . . . . Slashing 1717 | . . . 540 . 109 168 . 145 755 . . . . . . . . . . . Piercing 2120 | . . . . . . . . . . 599 702 . 115 488 . 164 52 . . . Highest Corruption 14 | . . . . 3 3 3 . . . . . . . . 10 10 10 14 14 1 Average Corruption 6 | . . . . 2 3 2 . . . . . . . . 10 10 10 13 7 1 Corruption Purged 16 | . . . . . . 3 . . . . . . . . . . . . 13 . Corruption Blocked 3 | . . . . . . . . . . . . . . . . . . 2 . 1 Effects 133 | . . . . 6 12 10 . . . . . . . . 9 13 54 9 19 1 Message Errors 25 | . . . . . 1 2 . . . . . . . . 2 2 13 2 3 . Matter Fused 36 | . . . . 3 4 2 . . . . . . . . 2 4 14 1 6 . Heat Flow Errors 15 | . . . . 2 2 1 . . . . . . . . 1 1 5 1 2 . Energy Discharges 14 | . . . . . 3 3 . . . . . . . . . . 4 1 2 1 Parts Rejected 3 | . . . . . . . . . . . . . . . . 1 2 . . . Parts Fused 1 | . . . . . . . . . . . . . . . . . . 1 . . Data Loss (minor) 16 | . . . . . 2 1 . . . . . . . . 2 2 6 1 2 . Data Loss (major) 6 | . . . . 1 . 1 . . . . . . . . 1 1 1 . 1 . Misfires 5 | . . . . . . . . . . . . . . . 1 1 2 . 1 . Alerts 3 | . . . . . . . . . . . . . . . . . 1 1 1 . Misdirections 2 | . . . . . . . . . . . . . . . . . 1 1 . . Weapon Failures 7 | . . . . . . . . . . . . . . . . 1 5 . 1 . Overload Shots . | . . . . . . . . . . . . . . . . . . . . . Overflow Damage 943 | . . . 94 . 58 130 . . 185 219 20 . . 237 . . . . . . Projectiles 11 | . . . . . . 11 . . . . . . . . . . . . . . Explosions 50 | . . . 50 . . . . . . . . . . . . . . . . . Melee 882 | . . . 44 . 58 119 . . 185 219 20 . . 237 . . . . . . Knockbacks 1 | . . . . . . . . . . . . . . 1 . . . . . . Impact 1 | . . . . . . . . . . . . . . 1 . . . . . . Kinetic . | . . . . . . . . . . . . . . . . . . . . . Secondary . | . . . . . . . . . . . . . . . . . . . . . Self-Inflicted Damage 167 | . . . 36 96 . 35 . . . . . . . . . . . . . . Shots 3 | . . . 1 1 . 1 . . . . . . . . . . . . . . Rammed . | . . . . . . . . . . . . . . . . . . . . . Targets Rammed 8 | . . . . . . . . . . . . . . 2 . . . . 1 5 Kicked 8 | . . . . . . . . . . . . . . 2 . . . . 1 5 Crushed . | . . . . . . . . . . . . . . . . . . . . . Highest Temperature 762 | . 104 1 219 262 238 166 . 80 148 36 108 . 180 458 762 362 412 65 222 317 Average Temperature 89 | . 50 1 61 113 94 35 . 28 48 15 39 . 45 124 178 140 75 65 92 114 Received Heat Transfer 1888 | . 60 195 369 108 9 72 . . 72 69 255 . . 75 . 72 358 . . 174 Effects 23 | . . . . 1 1 . . . . . . . . 2 9 3 7 . . . Shutdowns 6 | . . . . . . . . . . . . . . 1 2 . 3 . . . Energy Bleed 4 | . . . . . 1 . . . . . . . . 1 1 . 1 . . . Interference 6 | . . . . 1 . . . . . . . . . . . 2 3 . . . Matter Decay 1 | . . . . . . . . . . . . . . . 1 . . . . . Short Circuit 2 | . . . . . . . . . . . . . . . 1 1 . . . . Damage (major) 4 | . . . . . . . . . . . . . . . 4 . . . . . Siege Activations . | . . . . . . . . . . . . . . . . . . . . . Robots Corrupted . | . . . . . . . . . . . . . . . . . . . . . Combat Hostiles . | . . . . . . . . . . . . . . . . . . . . . Parts Fried 1 | . . . . . 1 . . . . . . . . . . . . . . . Impact Corruptions 1 | . . . . . . . . . . . . . . 1 . . . . . . Robots Melted 16 | . . . . . . . . . 1 . . . . 4 5 . 6 . . . Combat Hostiles 12 | . . . . . . . . . 1 . . . . 3 5 . 3 . . . Parts Melted 46 | . . . . . . . . . 9 1 1 . . 10 8 2 11 . 3 1 Heat Transferred 20227 | . . . . . 74 370 . . 1314 560 125 . . 2037 4895 425 6638 . 1497 2292 Parts Sabotaged . | . . . . . . . . . . . . . . . . . . . . . Parts Stolen . | . . . . . . . . . . . . . . . . . . . . . Parts Stripped . | . . . . . . . . . . . . . . . . . . . . . Power Chain Reactions . | . . . . . . . . . . . . . . . . . . . . . Missiles Intercepted . | . . . . . . . . . . . . . . . . . . . . . Alert | -11 -10 -10 -8 -7 -7 -7 -7 -6 -6 -6 -6 -6 -5 -5 -5 -5 -5 -5 -5 -5 ------- Run | Jun Mat Sub Mat Fac Low Low Dat Pro Fac Low Low Zio Pro Fac Was Fac Ext Cet Arc Hub Peak Influence 944 | 5 104 . 457 161 . . . . 166 . . . . 882 308 481 905 944 571 935 Initial 506 | . 3 . . 139 . . . . . . . . . 75 308 215 235 506 377 77 Average 342 | 2 50 . 282 117 . . . . 57 . . . . 518 308 373 609 828 431 489 Maximum Alert Level 3 | . . . 2 . . . . . . . . . . 3 1 2 3 3 2 3 Low Security (%) 41 | 100 100 . 19 100 . . . . 100 . . . . 23 . . . . . 23 Level 1 25 | . . . 73 . . . . . . . . . . 16 100 56 21 . 56 26 Level 2 18 | . . . 7 . . . . . . . . . . 22 . 43 39 30 43 22 Level 3 15 | . . . . . . . . . . . . . . 37 . . 38 69 . 27 Level 4 . | . . . . . . . . . . . . . . . . . . . . . Level 5 . | . . . . . . . . . . . . . . . . . . . . . High Security . | . . . . . . . . . . . . . . . . . . . . . Max Security . | . . . . . . . . . . . . . . . . . . . . . Squads Dispatched 21 | . . . 3 1 . . . . 3 . . . . 4 . . 2 . . 8 Investigation 2 | . . . 2 . . . . . . . . . . . . . . . . . Extermination 5 | . . . . 1 . . . . 2 . . . . 2 . . . . . . Reinforcement 8 | . . . 1 . . . . . 1 . . . . 1 . . 1 . . 4 Assault 4 | . . . . . . . . . . . . . . 1 . . 1 . . 2 Garrison 2 | . . . . . . . . . . . . . . . . . . . . 2 Intercept . | . . . . . . . . . . . . . . . . . . . . . Searches Triggered . | . . . . . . . . . . . . . . . . . . . . . Data Miner Redirects 3 | . . . . . . . . . . . . . . . . . 1 . . 2 Construction Impeded 1 | . . . . . . . . . . . . . . . . . 1 . . . Haulers Reinforced . | . . . . . . . . . . . . . . . . . . . . . Active Scanning Responses . | . . . . . . . . . . . . . . . . . . . . . Cargo Convoy Interrupts 1 | . . . . . . . . . 1 . . . . . . . . . . . Stealth | -11 -10 -10 -8 -7 -7 -7 -7 -6 -6 -6 -6 -6 -5 -5 -5 -5 -5 -5 -5 -5 --------- Run | Jun Mat Sub Mat Fac Low Low Dat Pro Fac Low Low Zio Pro Fac Was Fac Ext Cet Arc Hub Distress Signals 13 | . 1 . 4 . . . . . 1 . . . . 2 . . 3 1 . 1 Communications Jammed 1 | . . . . . . . . . . . . . . 1 . . . . . . Distress Signals . | . . . . . . . . . . . . . . . . . . . . . Times Spotted 256 | . 5 16 27 5 2 12 . 13 17 6 6 . 7 30 7 13 41 10 10 29 Peak Tracking Total 8 | . 3 6 5 2 1 4 . 4 4 3 4 . 5 6 2 6 6 5 1 8 Tactical Retreats 20 | . . 2 1 . 1 . . 1 4 2 . . 1 6 . . . . . 2 Traps | -11 -10 -10 -8 -7 -7 -7 -7 -6 -6 -6 -6 -6 -5 -5 -5 -5 -5 -5 -5 -5 ------- Run | Jun Mat Sub Mat Fac Low Low Dat Pro Fac Low Low Zio Pro Fac Was Fac Ext Cet Arc Hub Traps Triggered 8 | . . 1 1 . . . . . . . . . . 2 . . 4 . . . Indirectly . | . . . . . . . . . . . . . . . . . . . . . Trap Hack Attempts . | . . . . . . . . . . . . . . . . . . . . . Triggered . | . . . . . . . . . . . . . . . . . . . . . Disarmed . | . . . . . . . . . . . . . . . . . . . . . Reprogrammed . | . . . . . . . . . . . . . . . . . . . . . Reused . | . . . . . . . . . . . . . . . . . . . . . Traps Extracted . | . . . . . . . . . . . . . . . . . . . . . Installed . | . . . . . . . . . . . . . . . . . . . . . Triggered 9 | . . . . . 4 1 . 1 3 . . . . . . . . . . . Most Traps Carried 1 | . . . . . . . . . . . 1 . . . . . . . . . Machines | -11 -10 -10 -8 -7 -7 -7 -7 -6 -6 -6 -6 -6 -5 -5 -5 -5 -5 -5 -5 -5 ---------- Run | Jun Mat Sub Mat Fac Low Low Dat Pro Fac Low Low Zio Pro Fac Was Fac Ext Cet Arc Hub Machines Disabled 25 | . . 1 2 1 . . . . . . . . . 11 . . . 4 3 3 Max in Single Turn 1 | . . 1 1 1 . . . . . . . . . 1 . . . 1 1 1 Garrison Access 2 | . . . . . . . . . . . . . . 1 . . . . . 1 Machines Repaired . | . . . . . . . . . . . . . . . . . . . . . Machines Sabotaged . | . . . . . . . . . . . . . . . . . . . . . Overloaded Fab Kills . | . . . . . . . . . . . . . . . . . . . . . Hacking | -11 -10 -10 -8 -7 -7 -7 -7 -6 -6 -6 -6 -6 -5 -5 -5 -5 -5 -5 -5 -5 --------- Run | Jun Mat Sub Mat Fac Low Low Dat Pro Fac Low Low Zio Pro Fac Was Fac Ext Cet Arc Hub Machines Accessed 28 | . 1 2 6 4 1 1 4 . 2 . 1 . . 2 . 1 2 . . 1 Terminals 10 | . 1 . 5 2 . . . . 1 . . . . . . 1 . . . . Fabricators . | . . . . . . . . . . . . . . . . . . . . . Repair Stations 1 | . . . . . . . . . 1 . . . . . . . . . . . Recycling Units 4 | . . . . 1 . . . . . . . . . 1 . . 2 . . . Scanalyzers 2 | . . . 1 1 . . . . . . . . . . . . . . . . Garrison Access 2 | . . . . . . . . . . . . . . 1 . . . . . 1 Total Hacks 83 | . 4 13 15 9 1 1 28 . 4 . 1 . . 2 . 2 2 . . 1 Successful 58 | . 2 13 5 3 1 1 28 . 1 . 1 . . 2 . 1 . . . . Failed 25 | . 2 . 10 6 . . . . 3 . . . . . . 1 2 . . 1 Catastrophic 6 | . . . 1 1 . . . . 1 . . . . . . . 2 . . 1 Database Lockouts . | . . . . . . . . . . . . . . . . . . . . . Manual 84 | . 4 . 1 3 . . . . 1 . . . . 37 . 9 21 1 . 7 Terminals 25 | . 4 . 13 5 . . . . 1 . . . . . . 2 . . . . Fabricators . | . . . . . . . . . . . . . . . . . . . . . Repair Stations 3 | . . . . . . . . . 3 . . . . . . . . . . . Recycling Units 5 | . . . . 2 . . . . . . . . . 1 . . 2 . . . Scanalyzers 4 | . . . 2 2 . . . . . . . . . . . . . . . . Garrison Access 2 | . . . . . . . . . . . . . . 1 . . . . . 1 Terminal Hacks 53 | . 2 13 4 1 1 1 28 . 1 . 1 . . . . 1 . . . . Record 24 | . . 12 . . . 1 11 . . . . . . . . . . . . . Part Schematic 11 | . . . . . . . 11 . . . . . . . . . . . . . Robot Schematic 3 | . . . . . . . 3 . . . . . . . . . . . . . Robot Analysis 3 | . 2 . 1 . . . . . . . . . . . . . . . . . Prototype ID Bank 3 | . . . . . . . 3 . . . . . . . . . . . . . Open Door 3 | . . . . . 1 . . . . . 1 . . . . 1 . . . . Branch Access Points 2 | . . . . 1 . . . . 1 . . . . . . . . . . . Terminal Index 1 | . . . 1 . . . . . . . . . . . . . . . . . Maintenance Status 1 | . . . 1 . . . . . . . . . . . . . . . . . Zone Layout 1 | . . . 1 . . . . . . . . . . . . . . . . . Derelict Proto ID Bank 1 | . . 1 . . . . . . . . . . . . . . . . . . Fabricator Hacks . | . . . . . . . . . . . . . . . . . . . . . Repair Station Hacks . | . . . . . . . . . . . . . . . . . . . . . Recycling Unit Hacks 2 | . . . . 1 . . . . . . . . . 1 . . . . . . Retrieve Components 2 | . . . . 1 . . . . . . . . . 1 . . . . . . Scanalyzer 2 | . . . 1 1 . . . . . . . . . . . . . . . . Insert Component 2 | . . . 1 1 . . . . . . . . . . . . . . . . Garrison Access Hacks 1 | . . . . . . . . . . . . . . 1 . . . . . . Seal Access 1 | . . . . . . . . . . . . . . 1 . . . . . . Unauthorized Hacks . | . . . . . . . . . . . . . . . . . . . . . Terminals . | . . . . . . . . . . . . . . . . . . . . . Fabricators . | . . . . . . . . . . . . . . . . . . . . . Repair Stations . | . . . . . . . . . . . . . . . . . . . . . Recycling Units . | . . . . . . . . . . . . . . . . . . . . . Scanalyzers . | . . . . . . . . . . . . . . . . . . . . . Garrison Access . | . . . . . . . . . . . . . . . . . . . . . Data Cores Recovered 2 | . . . 1 . . . . . . . . . . . . . . . . 1 Used 1 | . . . 1 . . . . . . . . . . . . . . . . . Hacking Detections 16 | . 1 . 6 4 . . . . 1 . . . . . . . 2 1 . 1 Full Trace Events 1 | . . . 1 . . . . . . . . . . . . . . . . . Feedback Events . | . . . . . . . . . . . . . . . . . . . . . Feedback Blocked . | . . . . . . . . . . . . . . . . . . . . . Robot Schematics Acquired 8 | . . . . . . . 3 . . . . . . . . . 5 . . . Robots Built . | . . . . . . . . . . . . . . . . . . . . . Authchips . | . . . . . . . . . . . . . . . . . . . . . Time . | . . . . . . . . . . . . . . . . . . . . . Total Robot Build Rating . | . . . . . . . . . . . . . . . . . . . . . Part Schematics Acquired 24 | . . . . . . . 11 . . . . . . 13 . . . . . . Parts Built . | . . . . . . . . . . . . . . . . . . . . . Authchips . | . . . . . . . . . . . . . . . . . . . . . Time . | . . . . . . . . . . . . . . . . . . . . . Total Part Build Rating . | . . . . . . . . . . . . . . . . . . . . . Parts Repaired . | . . . . . . . . . . . . . . . . . . . . . Time . | . . . . . . . . . . . . . . . . . . . . . Parts Recycled . | . . . . . . . . . . . . . . . . . . . . . Recycled Matter . | . . . . . . . . . . . . . . . . . . . . . Retrieved Matter . | . . . . . . . . . . . . . . . . . . . . . Retrieved Components 4 | . . . . 3 . . . . . . . . . 1 . . . . . . Parts Scanalyzed 1 | . . . 1 . . . . . . . . . . . . . . . . . Part Schematics Acquired . | . . . . . . . . . . . . . . . . . . . . . Parts Damaged 2 | . . . 1 1 . . . . . . . . . . . . . . . . Bothacking | -11 -10 -10 -8 -7 -7 -7 -7 -6 -6 -6 -6 -6 -5 -5 -5 -5 -5 -5 -5 -5 ------------ Run | Jun Mat Sub Mat Fac Low Low Dat Pro Fac Low Low Zio Pro Fac Was Fac Ext Cet Arc Hub Used RIF Installer . | . . . . . . . . . . . . . . . . . . . . . Robots Hacked . | . . . . . . . . . . . . . . . . . . . . . Non-combat . | . . . . . . . . . . . . . . . . . . . . . Combat . | . . . . . . . . . . . . . . . . . . . . . Robot Hacks Applied . | . . . . . . . . . . . . . . . . . . . . . Relay Couplers Released 3 | . . . . . . . . . . . . . . . . . . . . 3 Machine Destruction 3 | . . . . . . . . . . . . . . . . . . . . 3 Fabnet Peak Effective % . | . . . . . . . . . . . . . . . . . . . . . Robots Rewired 12 | . . . . . . . . . . . . . . . . . 12 . . . Allies Hacked 5 | . . . . . . . . . . . . . . 5 . . . . . . Hacks Repelled . | . . . . . . . . . . . . . . . . . . . . . Allies | -11 -10 -10 -8 -7 -7 -7 -7 -6 -6 -6 -6 -6 -5 -5 -5 -5 -5 -5 -5 -5 -------- Run | Jun Mat Sub Mat Fac Low Low Dat Pro Fac Low Low Zio Pro Fac Was Fac Ext Cet Arc Hub Total Allies 67 | . . . . . . . . 1 . . . 20 . 7 . 4 31 . . 4 Largest Group 20 | . . . . . . . . 1 . . . 20 20 17 . 3 19 19 16 7 Highest-Rated Group 886 | . . . . . . . . 96 . . . 569 569 736 . 255 886 886 702 265 Highest-Rated Ally 159 | . . . . . . . . 96 . . . 41 41 85 . 85 159 159 159 51 Zionite Dispatches 12 | . . . . . . . . . . . . . . 4 . 2 4 . . 2 Heavy 3 | . . . . . . . . . . . . . . 1 . 2 . . . . Light 3 | . . . . . . . . . . . . . . 1 . . 2 . . . Recon 1 | . . . . . . . . . . . . . . . . . . . . 1 Hacker 2 | . . . . . . . . . . . . . . . . . 1 . . 1 Thermal Resupply 1 | . . . . . . . . . . . . . . . . . 1 . . . Kinetic Resupply 1 | . . . . . . . . . . . . . . 1 . . . . . . Melee Resupply 1 | . . . . . . . . . . . . . . 1 . . . . . . Total Orders 9 | . . . . . . . . . . . . . . 3 . . 1 . . 5 FOLLOW 1 | . . . . . . . . . . . . . . 1 . . . . . . DROP 3 | . . . . . . . . . . . . . . 2 . . 1 . . . EXPLORE 5 | . . . . . . . . . . . . . . . . . . . . 5 Ally Attacks 552 | . . . . . . . . 16 . . . . 86 90 . 11 141 71 54 83 Total Damage 15873 | . . . . . . . . 591 . . . . 1559 3764 . 703 4492 1456 1074 2234 Kills 114 | . . . . . . . . 7 . . . . 9 27 . 6 26 11 5 23 Allies Corrupted 2 | . . . . . . . . . . . . . 1 1 . . . . . . Allies Melted 1 | . . . . . . . . . . . . . . . . . 1 . . . Intel | -11 -10 -10 -8 -7 -7 -7 -7 -6 -6 -6 -6 -6 -5 -5 -5 -5 -5 -5 -5 -5 ------- Run | Jun Mat Sub Mat Fac Low Low Dat Pro Fac Low Low Zio Pro Fac Was Fac Ext Cet Arc Hub Robot Analysis Total 3 | . 2 . 1 . . . . . . . . . . . . . . . . . Derelict Logs Recovered 13 | . . 3 . . 1 2 . 2 . 1 2 1 1 . . . . . . . Drone Launches 5 | . . . . . . . . . . . . . . . . . . . . 5 Drone Recoveries 3 | . . . . . . . . . . . . . . . . . . . . 3 Decoded 0b10 Intel 8 | . . . . . . . . . . . . . . 8 . . . . . . Traps 6 | . . . . . . . . . . . . . . 6 . . . . . . Emergency Access 1 | . . . . . . . . . . . . . . 1 . . . . . . Exits 1 | . . . . . . . . . . . . . . 1 . . . . . . Zionite Intel Received 10 | . . . . . . . . . . . . . . 6 . 1 3 . . . Branch Access 1 | . . . . . . . . . . . . . . . . 1 . . . . Guard Positions 1 | . . . . . . . . . . . . . . 1 . . . . . . Component Schematics 1 | . . . . . . . . . . . . . . 1 . . . . . . Unaware Schematics 1 | . . . . . . . . . . . . . . . . . 1 . . . Unaware Analyses 2 | . . . . . . . . . . . . . . 1 . . 1 . . . Trap Installations 1 | . . . . . . . . . . . . . . . . . 1 . . . Active Terminals 1 | . . . . . . . . . . . . . . 1 . . . . . . Depthwide Sectors/0 1 | . . . . . . . . . . . . . . 1 . . . . . . Depthwide Sectors/-1 1 | . . . . . . . . . . . . . . 1 . . . . . . Exploration | -11 -10 -10 -8 -7 -7 -7 -7 -6 -6 -6 -6 -6 -5 -5 -5 -5 -5 -5 -5 -5 ------------- Run | Jun Mat Sub Mat Fac Low Low Dat Pro Fac Low Low Zio Pro Fac Was Fac Ext Cet Arc Hub Turns Passed 23921 | 28 376 2260 812 752 781 825 124 2557 1691 3504 2635 1327 1526 1464 263 351 1193 221 867 364 Spaces Moved 11518 | 8 191 1289 339 541 480 466 80 907 821 1316 705 1114 987 928 87 191 583 132 223 130 Core . | . . . . . . . . . . . . . . . . . . . . . Treads 1589 | 8 191 1289 101 . . . . . . . . . . . . . . . . . Legs 7013 | . . . . . . . . 3 614 1316 705 1114 987 928 87 191 583 132 223 130 Wheels 2916 | . . . 238 541 480 466 80 904 207 . . . . . . . . . . . Hover . | . . . . . . . . . . . . . . . . . . . . . Flight . | . . . . . . . . . . . . . . . . . . . . . Fastest Speed 110 | 160 160 160 111 110 110 110 110 130 110 110 110 113 113 110 110 110 110 113 112 112 Average Speed 127 | 160 160 160 139 110 117 117 120 152 128 110 112 113 120 123 172 126 116 153 151 138 Slowest Speed 260 | 160 160 160 250 125 125 125 130 260 195 110 113 113 189 196 196 196 196 189 189 204 Overloaded Moves . | . . . . . . . . . . . . . . . . . . . . . Propulsion Burnouts . | . . . . . . . . . . . . . . . . . . . . . Robots Hopped . | . . . . . . . . . . . . . . . . . . . . . Cave-ins Triggered 1 | . . . . . . . . . . 1 . . . . . . . . . . Exploration Rate (%) 55 | 2 30 80 31 17 57 62 70 82 20 92 62 90 71 27 85 5 77 72 94 39 Regions Visited 20 Branch Regions 13 Pre-discovered Areas 18 | . . 2 . . . . 1 . . . . . . 15 . . . . . . Known Exits Taken 16 | . . 1 1 1 1 1 1 1 1 1 1 1 1 . . 1 1 1 1 . Unknown Exits Taken 2 | 1 1 . . . . . . . . . . . . . . . . . . . Scrap Searched 36 | . . 5 . . 3 2 . 3 . 10 8 3 2 . . . . . . . Spaces Dug 155 | . . . 11 4 7 . . 3 21 27 20 6 28 16 . 9 2 . . 1 Terrain Destroyed 276 | . . . 40 34 7 36 . 3 21 27 24 6 32 17 . 9 3 . 7 10 Melee 89 | . . . 1 4 4 . . 3 21 27 6 6 5 10 . 2 . . . . Projectile 84 | . . . . . 3 2 . . . . 18 . 27 7 . 7 3 . 7 10 AOE 103 | . . . 39 30 . 34 . . . . . . . . . . . . . . Terrain Rammed . | . . . . . . . . . . . . . . . . . . . . . Walls Destroyed . | . . . . . . . . . . . . . . . . . . . . . Machines Disabled . | . . . . . . . . . . . . . . . . . . . . . Actions | -11 -10 -10 -8 -7 -7 -7 -7 -6 -6 -6 -6 -6 -5 -5 -5 -5 -5 -5 -5 -5 --------- Run | Jun Mat Sub Mat Fac Low Low Dat Pro Fac Low Low Zio Pro Fac Was Fac Ext Cet Arc Hub Total 19593 | 18 239 1419 558 660 669 713 107 2025 1371 3294 2458 1165 1273 1148 133 264 952 146 720 261 Wait 6442 | 1 5 44 70 54 149 207 27 1048 406 1833 1647 34 213 88 14 13 64 2 455 68 Move 11499 | 7 190 1288 338 540 479 465 79 906 820 1315 704 1113 986 928 86 190 582 131 222 130 Hop . | . . . . . . . . . . . . . . . . . . . . . Pick Up 161 | 1 14 20 12 13 3 . . 5 17 17 8 3 2 10 3 8 13 1 4 7 Fast Attach 100 | . 2 3 7 1 1 2 . 7 2 8 2 2 10 17 2 3 19 3 9 . Attach 82 | 1 . 1 8 4 2 . 1 6 16 12 6 . . 1 3 7 7 1 3 3 Detach 26 | 1 . . 2 1 . . . 3 3 4 2 . . 1 1 2 6 . . . Swap 258 | 3 2 6 33 11 11 12 . 4 31 23 16 . 13 33 3 11 23 5 1 17 Drop 247 | 1 10 14 17 12 4 3 . 11 19 34 19 4 11 24 5 9 31 2 10 7 Fire 423 | 3 16 35 62 20 14 22 . 30 25 10 20 . 28 16 16 13 54 1 15 23 Melee 195 | . . 8 9 4 6 2 . 5 32 38 34 9 10 28 . 8 1 . . 1 Ram . | . . . . . . . . . . . . . . . . . . . . . Kick 8 | . . . . . . . . . . . . . . 2 . . . . 1 5 Crush . | . . . . . . . . . . . . . . . . . . . . . Escape Stasis 20 | . . . . . . . . . . . . . . . . . 20 . . . Rewire 132 | . . . . . . . . . . . . . . . . . 132 . . . Trap . | . . . . . . . . . . . . . . . . . . . . . Miscellaneous . | . . . . . . . . . . . . . . . . . . . . . Route ------- -11/Junkyard -10/Materials (discovered 2 exits: [*Mat] / *Sub) -10/Subcaves (discovered 3 exits: *Mat x2 / Rec) -8/Materials (discovered 2 exits: *Fac x2) -7/Factory (discovered 2 exits: *Low x2) -7/Lower Caves (discovered 2 exits: *Low / *Dat) -7/Lower Caves -7/Data Miner -6/Proximity Caves -6/Factory (discovered 2 exits: *Low x2) -6/Lower Caves -6/Lower Caves (discovered 2 exits: *Fac / *Zio) -6/Zion -5/Proximity Caves -5/Factory (discovered 3 exits: Fac / Upp / Ext) -5/Waste -5/Factory (discovered 4 exits: Upp x2 / *Ext x2) -5/Extension (discovered 2 exits: *Fac / *Cet) -5/Cetus -5/Archives (discovered 3 exits: *Fac / *Hub x2) -5/Hub_04(d) (discovered 2 exits: *Fac x2) History --------- Turn | Location | Event 17 | -11/Junkyard | Discovered new exit (range 3) 29 | -11/Junkyard | Entered Materials 279 | -10/Materials | Discovered new exit (range 16) 303 | -10/Materials | Build established: Mutant 395 | -10/Materials | Discovered new exit (range 6) 405 | -10/Materials | Entered Subcaves 453 | -10/Subcaves | Visited Clippyterm 458 | -10/Subcaves | Identified exit to Materials 458 | -10/Subcaves | Identified exit to Recycling 595 | -10/Subcaves | Shifting Twisted Machinery released Piercing Trap 650 | -10/Subcaves | Shifting Twisted Machinery released Sub. Machine Gun 662 | -10/Subcaves | Learned location of 1 exit from Materials 665 | -10/Subcaves | Learned location of Zion (-6) 948 | -10/Subcaves | Shifting Twisted Machinery released Sub. Shrapnel Launcher 1225 | -10/Subcaves | Shifting Twisted Machinery released Sub. Shrapnel Launcher 1276 | -10/Subcaves | Met a Zionite searching for "candidates" 1925 | -10/Subcaves | Learned Materials emergency access door positions 2070 | -10/Subcaves | Visited 4L-MR0's lab 2594 | -10/Subcaves | Found Arachnoskeleton 2665 | -10/Subcaves | Entered Materials 2665 | -8/Materials | Evolved 4 slots: Propulsion x1, Utility x2, Weapon x1 2666 | -8/Materials | Identified exit to Factory 3446 | -8/Materials | Discovered exit to Factory (range 9) 3477 | -8/Materials | Entered Factory 3477 | -7/Factory | Evolved 2 slots: Utility x2 3599 | -7/Factory | Identified exit to Lower Caves 4229 | -7/Factory | Entered Lower Caves 4230 | -7/Lower Caves | Encountered a Warlord checkpoint 4250 | -7/Lower Caves | A Derelict revealed a hidden shortcut to meet someone special 4259 | -7/Lower Caves | Identified exit to Data Miner 4264 | -7/Lower Caves | Identified exit to Lower Caves 5010 | -7/Lower Caves | Entered another Lower Caves area 5647 | -7/Lower Caves | Build established: Scavenger-Skirmisher 5730 | -7/Lower Caves | Learned location of 1 exit from Proximity Caves 5802 | -7/Lower Caves | Discovered exit to Data Miner (range 5) 5835 | -7/Lower Caves | Entered Data Miner 5836 | -7/Data Miner | Discovered new exit (range 6) 5857 | -7/Data Miner | Met Data Miner 5909 | -7/Data Miner | Learned location of Section 7 (-2) 5909 | -7/Data Miner | Acquired the access code to Warlord's prototype stash 5930 | -7/Data Miner | Received God Mode back door access code from Data Miner 5957 | -7/Data Miner | Identified exit to Proximity Caves 5959 | -7/Data Miner | Entered Proximity Caves 5960 | -6/Proximity Caves | Identified exit to Factory 6133 | -6/Proximity Caves | Build established: Mutant 6369 | -6/Proximity Caves | Escorted by Enhanced Grunt 6501 | -6/Proximity Caves | Attracted the attention of an 0b10 checkpoint 6558 | -6/Proximity Caves | Build established: Skirmisher 6737 | -6/Proximity Caves | Lost 4 parts (1n1u2w) 6747 | -6/Proximity Caves | Found Prototype Device 6747 | -6/Proximity Caves | Identified Exp. Thermal Shield 7038 | -6/Proximity Caves | Build established: Scavenger-Mutant 7442 | -6/Proximity Caves | Build established: Scavenger-Tank 8516 | -6/Proximity Caves | Entered Factory 8516 | -6/Factory | Evolved 2 slots: Utility x2 8981 | -6/Factory | Spotted B-75 Beast 8984 | -6/Factory | Build established: Scavenger-Assassin 9037 | -6/Factory | Attached Arachnoskeleton, gained temporary slots: Propulsion x3 9557 | -6/Factory | Cargo convoy interrupted 9958 | -6/Factory | Identified exit to Lower Caves 10207 | -6/Factory | Entered Lower Caves 10492 | -6/Lower Caves | Encountered a Warlord checkpoint 10957 | -6/Lower Caves | Learned Factory interactive machine intel 11843 | -6/Lower Caves | Crushed by falling debris 13045 | -6/Lower Caves | Build established: Subdweller-Assassin 13384 | -6/Lower Caves | Build established: Cobbler-Skirmisher 13555 | -6/Lower Caves | Discovered new exit (range 7) 13710 | -6/Lower Caves | Identified exit to Lower Caves 13711 | -6/Lower Caves | Entered another Lower Caves area 13738 | -6/Lower Caves | Build established: Derelict-Assassin 14067 | -6/Lower Caves | Discovered new exit (range 18) 14443 | -6/Lower Caves | Learned Factory security intel 14682 | -6/Lower Caves | Attacked by a faux Warlord 15896 | -6/Lower Caves | Encountered a Warlord checkpoint 15990 | -6/Lower Caves | Learned 4 Factory zone layouts 16019 | -6/Lower Caves | Discovered new exit (range 10) 16071 | -6/Lower Caves | Identified exit to Zion 16346 | -6/Lower Caves | Entered Zion 16422 | -6/Zion | Discovered new exit (range 14) 16437 | -6/Zion | Identified exit to Proximity Caves 16603 | -6/Zion | Learned Factory stockpile data 16683 | -6/Zion | Given A8's code to call for help 17105 | -6/Zion | Received a hallucinogenic algorithm 17218 | -6/Zion | Imprinted 17220 | -6/Zion | Declared Zion's savior 17282 | -6/Zion | Gained Derelict followers 17332 | -6/Zion | Gained Derelict followers 17552 | -6/Zion | Gained Derelict followers 17587 | -6/Zion | Gained Derelict followers 17673 | -6/Zion | Entered Proximity Caves 17673 | -5/Proximity Caves | Accompanied by 20 allies 17721 | -5/Proximity Caves | Spotted B-75 Beast 17742 | -5/Proximity Caves | Allies destroyed B-75 Beast 18454 | -5/Proximity Caves | Discovered new exit (range 8) 18461 | -5/Proximity Caves | Identified exit to Factory 18481 | -5/Proximity Caves | Learned 4 Factory zone layouts 18683 | -5/Proximity Caves | Found Alien Artifact 18683 | -5/Proximity Caves | Identified Core Expander 18683 | -5/Proximity Caves | Installed Core Expander, added new Weapon slot 19199 | -5/Proximity Caves | Entered Factory 19199 | -5/Factory | Accompanied by 11 allies 19199 | -5/Factory | Evolved 2 slots: Power x1, Propulsion x1 19200 | -5/Factory | Identified exit to Upper Caves 19200 | -5/Factory | Identified exit to Extension 19204 | -5/Factory | Loaded intel: 54 interactive machine locations 19398 | -5/Factory | Retrieved Zion intel report: Active Terminals 19399 | -5/Factory | Zion Heavy squad teleported in 19429 | -5/Factory | Zion Light squad teleported in 19454 | -5/Factory | Zion Melee Resupply teleported in 19546 | -5/Factory | Retrieved Zion intel report: Depthwide Sectors/-1 19864 | -5/Factory | Retrieved Zion intel report: Guard Positions 19865 | -5/Factory | Zion Kinetic Resupply teleported in 20113 | -5/Factory | Retrieved Zion intel report: Unaware Analyses 20171 | -5/Factory | Found Prototype Protection 20171 | -5/Factory | Identified Zio. Weapon Casing 20222 | -5/Factory | Retrieved Zion intel report: Depthwide Sectors/0 20286 | -5/Factory | Identified exit to Factory 20378 | -5/Factory | Retrieved Zion intel report: Component Schematics 20399 | -5/Factory | First assault squad dispatched 20485 | -5/Factory | Terminal network hard line cut 20663 | -5/Factory | Manually triggered Chute Trap 20663 | -5/Factory | Sucked down chute 20663 | -5/Factory | Entered Waste 20678 | -5/Waste | EMP discharged 20678 | -5/Waste | System corruption reached 10% 20690 | -5/Waste | Spotted C-40 Crusher 20700 | -5/Waste | Spotted C-40 Crusher 20702 | -5/Waste | Destroyed C-40 Crusher 20704 | -5/Waste | Spotted C-40 Crusher 20709 | -5/Waste | Destroyed C-40 Crusher 20742 | -5/Waste | Spotted C-40 Crusher 20742 | -5/Waste | Spotted C-40 Crusher 20742 | -5/Waste | Destroyed C-40 Crusher 20755 | -5/Waste | Destroyed C-40 Crusher 20760 | -5/Waste | Destroyed C-40 Crusher 20769 | -5/Waste | Found Damper Plating 20778 | -5/Waste | EMP discharged 20783 | -5/Waste | Spotted C-40 Crusher 20804 | -5/Waste | Destroyed C-40 Crusher 20878 | -5/Waste | EMP discharged 20884 | -5/Waste | Discovered new exit (range 15) 20926 | -5/Waste | Entered Factory 21005 | -5/Factory | Retrieved Zion intel report: Branch Access 21006 | -5/Factory | Zion Heavy squad teleported in 21146 | -5/Factory | Found Zio. Weapon Casing 21193 | -5/Factory | Zion Heavy squad teleported in 21277 | -5/Factory | Entered Extension 21277 | -5/Extension | Accompanied by 3 allies 21403 | -5/Extension | Build established: Scavenger-Mutant 21437 | -5/Extension | Found Zio. Weapon Casing 21457 | -5/Extension | Retrieved Zion intel report: Trap Installations 21458 | -5/Extension | Zion Light squad teleported in 21461 | -5/Extension | Zion Thermal Resupply teleported in 21551 | -5/Extension | Retrieved Zion intel report: Unaware Analyses 21555 | -5/Extension | Rescued a captive Derelict 21556 | -5/Extension | Rescued a captive Derelict 21594 | -5/Extension | Rescued a captive Derelict 21615 | -5/Extension | Rescued a captive Derelict 21620 | -5/Extension | Spotted B-75 Beast 21642 | -5/Extension | Spotted B-75 Beast 21645 | -5/Extension | Allies destroyed B-75 Beast 21659 | -5/Extension | Allies destroyed B-75 Beast 21677 | -5/Extension | Disrupted transfer network 21841 | -5/Extension | Found Zio. Weapon Casing 21977 | -5/Extension | Build established: Scavenger-Tank 22031 | -5/Extension | Rescued A7 22111 | -5/Extension | Rescued a captive Derelict 22177 | -5/Extension | First assault squad dispatched 22200 | -5/Extension | Incoming assault squad redirected 22220 | -5/Extension | Retrieved Zion intel report: Unaware Schematics 22221 | -5/Extension | Zion Hacker squad teleported in 22236 | -5/Extension | Zion Light squad teleported in 22285 | -5/Extension | Rescued a captive Derelict 22287 | -5/Extension | Rescued a captive Derelict 22353 | -5/Extension | Rescued a captive Derelict 22413 | -5/Extension | Discovered exit to Factory (range 10) 22414 | -5/Extension | Discovered new exit (range 6) 22423 | -5/Extension | Identified exit to Cetus 22470 | -5/Extension | Entered Cetus 22470 | -5/Cetus | Accompanied by 19 allies (A7) 22475 | -5/Cetus | Acquired a Cetus Manufacturing Module code from A7 22486 | -5/Cetus | Spotted Cetus Guard 22486 | -5/Cetus | Spotted Cetus Guard 22488 | -5/Cetus | Spotted Cetus Guard 22489 | -5/Cetus | Spotted Cetus Guard 22494 | -5/Cetus | Allies destroyed Cetus Guard 22498 | -5/Cetus | Allies destroyed Cetus Guard 22500 | -5/Cetus | Allies destroyed Cetus Guard 22500 | -5/Cetus | Allies destroyed Cetus Guard 22510 | -5/Cetus | Found Zio. Weapon Casing 22537 | -5/Cetus | Cetus Manufacturing Module disabled 22591 | -5/Cetus | Failed to start Cetus Manufacturing Module 22612 | -5/Cetus | Escorted A7 to Cetus Mainframe 22656 | -5/Cetus | Discovered new exit (range 16) 22682 | -5/Cetus | Identified exit to Archives 22691 | -5/Cetus | Entered Archives 22691 | -5/Archives | Accompanied by 16 allies (A7) 22696 | -5/Archives | Received a hacking code to weaken MAIN.C 22758 | -5/Archives | Discovered new exit (range 16) 22894 | -5/Archives | Discovered exit to Factory (range 14) 22935 | -5/Archives | Build established: Scavenger-Gunner 23412 | -5/Archives | Discovered new exit (range 15) 23424 | -5/Archives | Found Zio. Weapon Casing 23466 | -5/Archives | Identified exit to Hub_04(d) 23558 | -5/Archives | Entered Hub_04(d) 23558 | -5/Hub_04(d) | Accompanied by 7 allies 23598 | -5/Hub_04(d) | Garrison activated, responded to threat 23677 | -5/Hub_04(d) | Zion Hacker squad teleported in 23699 | -5/Hub_04(d) | Zion Recon squad teleported in 23719 | -5/Hub_04(d) | Discovered exit to Factory (range 34) 23827 | -5/Hub_04(d) | Discovered exit to Factory (range 25) 23858 | -5/Hub_04(d) | First assault squad dispatched 23913 | -5/Hub_04(d) | Incoming assault squad redirected 23914 | -5/Hub_04(d) | Incoming assault squad redirected 23922 | -5/Hub_04(d) | Self-destructed Last Messages --------------- 23900_ C-35 Carver suffers critical hit (Burn). 23900_ Zio. Composite Leg I severed. 23900_ Chain reaction triggered in Imp. Deuterium Engine. 23900_ NI-PIR(p) destroyed. 23903_ Zio. Weapon Casing destroyed. 23906_ Zio. Composite Leg I severed. 23908_ K-01 Serf collects debris. 23909_ Lgt. Fission Core destroyed. 23909_ C-35 Carver destroyed. 23909_ Switching to secondary target: L-41 Fighter. 23911_ K-01 Serf collects debris. 23913_ ALERT: Higher priority target reported, redirecting assault. 23914_ K-01 Serf collects debris. 23914_ Terminal disabled. 23915_ Wave Gun severed. 23916_ Imp. Particle Charger destroyed. 23916_ K-01 Serf collects debris. 23918_ Lgt. Fission Core destroyed. 23920_ K-01 Serf collects debris. 23922_ Zio. Light DM Reactor severed. Map ----- +----------------------------------------------------+ | #??# # #??#????? ?????????????????? | | "" #??# ################?????????????????????? | | #### # ??#??????????????????? | | "" ##?# # ##???????????????????? | | ! #### + ?????????????????????? | | ##?# # ?????????????????????? | | #### # #?? ?????????????????? | | #### ###############?#????????????????????? | | #=##%% ##################? ?????????????????? | | ########%* %# ????????????????????? | | % % ! # """ """ """ #???????????????????? | | % %%%% % + | #???????????????????? | | %# """ """ """ #???????????????????? | | ##/##### # ????????????????????? | | # ########################???????????????????? | | +%" " ########################## H !#???????????? | | # " " # # #???????????? | | # " "%# # ######## #???????????? | | # # # #????????????????????????? | | # "%" # + #????????????????????????? | | # " " # # * #????##??????????????????? | | # " " ##############]##+#####;##?????????????????? | | # #?????????#/=%=## #?????????????????? | | # #??????#### !%=##[""" " #?????????????????? | | # %#########*#= [[##*"T[*" # "" ?????????????? | | #! +*=%===%!*=[%*!##!!@c=" R T ????????????? | | # #####=[[[=%*= =##glcb%= # R ??????????? | | # ###?#%[%[[=*]*=;;%"!"/! #?????????????????? | | # #???#![[[*%% % %;i"!"= ;; ???????????????? | | ####/##???#%#[#%"##%%;%k"%"R" ## ?????????????? | | #??#%#????# #?#[##[*!*#kk*== #??? #????????????? | | ####%######/### ?#!#############?????????????????? | | #! #??#???????????????????????????????? | | # !! #??????????????????????????????????? | | # ! #??????????????????????????????????? | | # """ #??????????????????????????????????? | | #[ #??????????????????????????????????? | | # """ #??????????????????????????????????? | | ## # #??????????????????????????????????? | | ?# #[ """ #??????????????????????????????????? | | ?# # #??????????????????????????????????? | | ?# #####/############+######???????????????????? | | ## ?????????????????? | | + ?????????????????? | | # ?????????????????? | | # ########+########## !?????????????????? | | + # #??????? ???????????????????? | | # # = #???????????????????????????? | | # # #???????????????????????????? | | # # +???????????????????????????? | +----------------------------------------------------+ Best States ------------- Heat Dissipation 128 Coolant Potential 80 Energy Generation 55 Energy Capacity 790 Matter Stores 300 Matter Capacity 300 Sight Range 21 Robot Scan Range 16 Terrain Scan Range 24 Terrain Scan Density 210 Jamming Range 14 Armor Coverage 1600 Resistance: TH 30 Resistance: EM 90 Propulsion Shielding 66 Weapon Shielding 100 Evasion (%) 55 Recoil Reduction 3 Particle Charging 20 Salvage Targeting 1 Item Schematics ----------------- Combat Drone Bay | -7/Data Miner | Free Lgt. Regenerative Plating | -7/Data Miner | Free Cld. Cesium-ion Thruster | -7/Data Miner | Free Thermal Defense Suite | -7/Data Miner | Free Shock Maul | -7/Data Miner | Free Antigrav System | -7/Data Miner | Free Imp. Component Analysis Suite | -7/Data Miner | Free Hyp. Coil Gun | -7/Data Miner | Free Imp. Focal Shield | -7/Data Miner | Free Disruptor Cannon | -7/Data Miner | Free Phase Gun | -7/Data Miner | Free Matter Compressor | -5/Factory | Z-intel Enh. Gauss Cannon | -5/Factory | Z-intel Plasma Rifle | -5/Factory | Z-intel Hvy. Rocket Launcher | -5/Factory | Z-intel Smartbomb Launcher | -5/Factory | Z-intel Cloaking Device | -5/Factory | Z-intel Hvy. Flail | -5/Factory | Z-intel Hpw. Tractor Beam | -5/Factory | Z-intel Phase Shifter | -5/Factory | Z-intel Lyr. Light Armor Plating | -5/Factory | Z-intel Katana | -5/Factory | Z-intel Targeting Computer | -5/Factory | Z-intel Nuclear Pulse Thruster | -5/Factory | Z-intel Robot Schematics ------------------ L-41 Fighter | -7/Data Miner | Free S-27 Virus | -7/Data Miner | Free H-66 Slayer | -7/Data Miner | Free G-50 Soldier | -5/Extension | Z-intel E-15 Imp | -5/Extension | Z-intel Y-64 Sentinel | -5/Extension | Z-intel K-01 Serf | -5/Extension | Z-intel A-02 Transporter | -5/Extension | Z-intel Fabricated ------------ Nothing Alien Tech Used ----------------- Core Expander Achievements -------------- None Challenges ------------ None Game ------ Seed GhostSupersonicUnit Manual? 0 Play Time 06:07:49 Cumulative 402.0 hours Start 2023.11.30 @ 00:02:28 End 2023.12.01 @ 11:14:05 Sessions 12 Manual Loads 0 Difficulty Rogue Special Mode None Game No. 199 Rogue 199 Adventurer 0 Explorer 0 Win Type - Total 14 Types 8/0/4/2/0/0/0/0/0 Lore% 82 Gallery% 84 Achievement% 71 Wizard Run 0 Options --------- ASCII 0 Keyboard 0 Movement Mouse Keybinds 0 Fullscreen 1 Font 12/Smallcaps Map View 76x56 Tactical HUD 1 Map Filters NONE Filters NONE Steam 1 RUN: b2442db3-9476-499c-9dce-545873d8bd4a